[Event "2nd Bundesliga Nord 2024-25"]
[Site "Germany"]
[Date "2024.11.30"]
[Round "2.1"]
[White "Ernst, Sipke"]
[Black "Halvax, Georg"]
[Result "0-1"]
[Annotator "ChessBase"]
[ECO "A07"]
[WhiteElo "2519"]
[BlackElo "2434"]
[PlyCount "78"]
[EventDate "2024.11.29"]
[EventType "team-tourn"]
[EventCountry "GER"]
[SourceTitle "playchess.com"]
[Source "ChessBase"]
[SourceQuality "1"]
[TimeControl "40/5400+30:1800+30"]

1. Nf3 {[%emt 0:00:03]} d5 {[%emt 0:00:15]} 2. g3 {[%emt 0:00:12]} Bg4 {[%emt 0:01:04]} 3. Bg2 {[%emt 0:00:13]} e6 {[%emt 0:00:11]} 4. b3 {[%emt 0:03:39]} Nf6 {[%emt 0:03:35]} 5. Bb2 {[%emt 0:02:08]} Be7 {[%emt 0:00:54]} 6. h3 {[%emt 0:00:17]} Bh5 {[%emt 0:00:19]} 7. c4 {[%emt 0:03:19]} c6 {[%emt 0:01:36]} 8. d3 {[%emt 0:00:40]} O-O {[%emt 0:01:37]} 9. Nbd2 {[%emt 0:00:08]} a5 {[%emt 0:00:47]} 10. g4 {[%emt 0:01:40]} Bg6 {[%emt 0:00:28]} 11. Ne5 {[%emt 0:03:18]} Nfd7 {[%emt 0:04:58]} 12. Nxg6 {[%emt 0:00:59]} hxg6 {[%emt 0:01:52]} 13. d4 {[%emt 0:05:32]} f5 {[%emt 0:08:02]} 14. e3 {[%emt 0:06:18]} a4 {[%emt 0:06:01]} 15. h4 {[%emt 0:06:43]} axb3 {[%emt 0:04:14]} 16. Qxb3 {[%emt 0:10:39]} fxg4 {[%emt 0:03:47]} 17. cxd5 {[%emt 0:03:07]} cxd5 {[%emt 0:01:51]} 18. h5 {[%emt 0:03:40]} Bh4 {[%emt 0:28:56]} 19. Bxd5 {[%emt 0:16:44]} exd5 {[%emt 0:09:09]} 20. Qxd5+ {[%emt 0:00:16]} Kh8 {[%emt 0:00:12]} 21. hxg6 {[%emt 0:03:27]} Ra5 {[%emt 0:00:18]} 22. Qg2 {[%emt 0:15:19]} Rh5 {[%emt 0:08:35]} 23. Qxg4 {[%emt 0:05:38]} Nf6 {[%emt 0:00:46]} 24. Qg2 {[%emt 0:04:33]} Qa5 {[%emt 0:02:19]} 25. Qxb7 {[%emt 0:02:04]} Nbd7 {[%emt 0:02:24]} 26. Rc1 {[%emt 0:00:42]} Qf5 {[%emt 0:04:46]} 27. Rf1 {[%emt 0:02:08]} Nd5 {[%emt 0:01:57]} 28. Ke2 {[%emt 0:00:31]} Qg4+ {[%emt 0:01:51]} 29. f3 {[%emt 0:00:22]} Qg2+ {[%emt 0:00:43]} 30. Kd3 {[%emt 0:00:01]} Nxe3 {[%emt 0:00:43]} 31. Rg1 {[%emt 0:00:05]} Qh3 {[%emt 0:01:14]} 32. Ba3 {[%emt 0:00:10]} Re8 {[%emt 0:00:34]} 33. Rh1 {[%emt 0:01:53]} Qf5+ {[%emt 0:00:11]} 34. Kc3 {[%emt 0:00:10]} Qa5+ {[%emt 0:00:19]} 35. Bb4 {[%emt 0:00:33]} Nd5+ {[%emt 0:00:06]} 36. Kb3 {[%emt 0:00:01]} Nxb4 {[%emt 0:00:12]} 37. Qxd7 {[%emt 0:01:17]} Qxa2+ {[%emt 0:00:21]} 38. Kxb4 {[%emt 0:00:01]} Qxd2+ {[%emt 0:00:18]} 39. Kc4 {[%emt 0:00:18]} Qe2+ {[%emt 0:00:06]} 0-1

[Event "2nd Bundesliga Nord 2024-25"]
[Site "Germany"]
[Date "2024.11.30"]
[Round "2.2"]
[White "Gaponenko, Inna"]
[Black "Peyrer, Konstantin"]
[Result "1/2-1/2"]
[Annotator "ChessBase"]
[ECO "C44"]
[WhiteElo "2341"]
[BlackElo "2437"]
[PlyCount "62"]
[EventDate "2024.11.29"]
[EventType "team-tourn"]
[EventCountry "GER"]
[SourceTitle "playchess.com"]
[Source "ChessBase"]
[SourceQuality "1"]
[TimeControl "40/5400+30:1800+30"]

1. e4 {[%emt 0:00:04]} e5 {[%emt 0:00:09]} 2. Nf3 {[%emt 0:00:12]} Nc6 {[%emt 0:00:07]} 3. d4 {[%emt 0:03:26]} exd4 {[%emt 0:00:23]} 4. Bc4 {[%emt 0:00:05]} Bb4+ {[%emt 0:00:58]} 5. c3 {[%emt 0:09:04]} dxc3 {[%emt 0:00:16]} 6. O-O {[%emt 0:00:27]} Nf6 {[%emt 0:00:13]} 7. e5 {[%emt 0:28:22]} d5 {[%emt 0:00:11]} 8. Bb5 {[%emt 0:00:14]} Ne4 {[%emt 0:13:46]} 9. Qa4 {[%emt 0:06:14]} c2 {[%emt 0:11:00]} 10. Nbd2 {[%emt 0:22:39]} Bxd2 {[%emt 0:02:24]} 11. Bxc6+ {[%emt 0:11:41]} bxc6 {[%emt 0:00:08]} 12. Nxd2 {[%emt 0:00:02]} Nxd2 {[%emt 0:12:30]} 13. Bxd2 {[%emt 0:00:01]} O-O {[%emt 0:00:10]} 14. Qxc2 {[%emt 0:00:02]} Rb8 {[%emt 0:00:18]} 15. Be3 {[%emt 0:02:18]} a5 {[%emt 0:14:52]} 16. Qxc6 {[%emt 0:05:49]} Rxb2 {[%emt 0:00:29]} 17. Rfd1 {[%emt 0:02:20]} Be6 {[%emt 0:06:12]} 18. Qc5 {[%emt 0:05:15]} a4 {[%emt 0:01:47]} 19. Qa3 {[%emt 0:00:07]} Rc2 {[%emt 0:03:24]} 20. Qxa4 {[%emt 0:00:29]} Rc4 {[%emt 0:00:09]} 21. Qxc4 {[%emt 0:01:22]} dxc4 {[%emt 0:00:07]} 22. Rxd8 {[%emt 0:00:03]} Rxd8 {[%emt 0:00:07]} 23. h3 {[%emt 0:00:53]} Bf5 {[%emt 0:05:14]} 24. Rc1 {[%emt 0:00:20]} Bd3 {[%emt 0:00:06]} 25. a4 {[%emt 0:00:02]} Rd5 {[%emt 0:00:34]} 26. f4 {[%emt 0:00:22]} g5 {[%emt 0:01:57]} 27. fxg5 {[%emt 0:00:50]} Rxe5 {[%emt 0:01:06]} 28. Bf4 {[%emt 0:00:17]} Ra5 {[%emt 0:00:28]} 29. Bxc7 {[%emt 0:01:20]} Rxa4 {[%emt 0:00:53]} 30. Be5 {[%emt 0:00:20]} Ra6 {[%emt 0:01:33]} 31. Ra1 {[%emt 0:00:28]} Rxa1+ {[%emt 0:00:21]} 1/2-1/2

[Event "2nd Bundesliga Nord 2024-25"]
[Site "Germany"]
[Date "2024.11.30"]
[Round "2.3"]
[White "Woelk, Tom-Frederic"]
[Black "Schlecht, Daniel"]
[Result "1-0"]
[Annotator "ChessBase"]
[ECO "C83"]
[WhiteElo "2378"]
[BlackElo "2372"]
[PlyCount "75"]
[EventDate "2024.11.29"]
[EventType "team-tourn"]
[EventCountry "GER"]
[SourceTitle "playchess.com"]
[Source "ChessBase"]
[SourceQuality "1"]
[TimeControl "40/5400+30:1800+30"]

1. e4 {[%emt 0:00:03]} e5 {[%emt 0:00:05]} 2. Nf3 {[%emt 0:00:11]} Nc6 {[%emt 0:00:05]} 3. Bb5 {[%emt 0:01:28]} a6 {[%emt 0:00:06]} 4. Ba4 {[%emt 0:00:04]} Nf6 {[%emt 0:00:07]} 5. O-O {[%emt 0:00:06]} Nxe4 {[%emt 0:00:41]} 6. d4 {[%emt 0:01:26]} Be7 {[%emt 0:00:10]} 7. Re1 {[%emt 0:02:32]} b5 {[%emt 0:01:33]} 8. Bb3 {[%emt 0:15:03]} d5 {[%emt 0:00:48]} 9. dxe5 {[%emt 0:00:06]} Be6 {[%emt 0:00:30]} 10. c3 {[%emt 0:00:54]} O-O {[%emt 0:04:43]} 11. Nd4 {[%emt 0:10:42]} Nxe5 {[%emt 0:39:11]} 12. f3 {[%emt 0:09:04]} Bh4 {[%emt 0:03:22]} 13. fxe4 {[%emt 0:13:23]} Bg4 {[%emt 0:06:41]} 14. Qd2 {[%emt 0:04:16]} c5 {[%emt 0:05:13]} 15. Rf1 {[%emt 0:10:24]} cxd4 {[%emt 0:01:13]} 16. Qf4 {[%emt 0:04:35]} Bf6 {[%emt 0:11:23]} 17. cxd4 {[%emt 0:13:55]} Nd3 {[%emt 0:00:25]} 18. Qxg4 {[%emt 0:00:10]} Bxd4+ {[%emt 0:00:11]} 19. Kh1 {[%emt 0:00:23]} Nxc1 {[%emt 0:00:36]} 20. Rxc1 {[%emt 0:00:09]} Bxb2 {[%emt 0:00:09]} 21. Nd2 {[%emt 0:00:26]} Bxa1 {[%emt 0:06:46]} 22. Rxa1 {[%emt 0:00:04]} dxe4 {[%emt 0:00:05]} 23. Nxe4 {[%emt 0:00:18]} a5 {[%emt 0:07:04]} 24. Rf1 {[%emt 0:04:08]} Ra6 {[%emt 0:02:35]} 25. Qf5 {[%emt 0:02:39]} h6 {[%emt 0:03:24]} 26. Qxb5 {[%emt 0:01:02]} Ra7 {[%emt 0:02:09]} 27. Qf5 {[%emt 0:02:21]} Kh8 {[%emt 0:00:21]} 28. h3 {[%emt 0:01:41]} Qe7 {[%emt 0:01:58]} 29. Bc2 {[%emt 0:01:01]} g6 {[%emt 0:00:56]} 30. Qf4 {[%emt 0:00:12]} Kg7 {[%emt 0:00:09]} 31. Qe3 {[%emt 0:01:16]} f5 {[%emt 0:00:29]} 32. Qd4+ {[%emt 0:00:41]} Kh7 {[%emt 0:00:10]} 33. Ng3 {[%emt 0:00:18]} Qg7 {[%emt 0:00:58]} 34. Qf2 {[%emt 0:01:13]} Rc7 {[%emt 0:01:03]} 35. Bb1 {[%emt 0:00:11]} Rff7 {[%emt 0:01:11]} 36. h4 {[%emt 0:00:09]} h5 {[%emt 0:00:29]} 37. Qf4 {[%emt 0:00:13]} Rc5 {[%emt 0:00:33]} 38. Ne4 {[%emt 0:00:27]} 1-0

[Event "2nd Bundesliga Nord 2024-25"]
[Site "Germany"]
[Date "2024.11.30"]
[Round "2.4"]
[White "Bashylina, Luisa"]
[Black "Colpe, Malte"]
[Result "0-1"]
[Annotator "TA"]
[ECO "D35"]
[WhiteElo "2105"]
[BlackElo "2371"]
[PlyCount "102"]
[EventDate "2024.11.29"]
[EventType "team-tourn"]
[EventCountry "GER"]
[SourceTitle "playchess.com"]
[Source "ChessBase"]
[SourceQuality "1"]
[TimeControl "40/5400+30:1800+30"]

{[%evp 31,102,25,23,17,28,19,16,7,33,0,0,0,0,0,0,-77,-49,-41,-30,-33,-35,-77,-53,-330,-324,-336,-314,-380,-374,-386,-406,-411,-414,-384,-393,-410,-352,-400,-383,-598,-418,-460,-443,-886,-498,-29961,-29963,-29992,-1095,-29988,-942,-29975,-29976,-29987,-29988,-29988,-6170,-5614,-1567,-1917,-1878,-1748,-1623,-29989,-29990,-29990,-29991,-29994,-29988,-29991,-29992,-29996,-29997]} 1. d4 {[%emt 0:00:04]} Nf6 {[%emt 1:31:00]} 2. c4 {[%emt 0:00:03]} e6 {[%emt 0:00:07]} 3. Nc3 {[%emt 0:00:03]} d5 {[%emt 0:00:58]} 4. cxd5 {[%emt 0:00:05]} exd5 {[%emt 0:00:06]} 5. Bg5 {[%emt 0:00:04]} Be7 {[%emt 1:31:42]} 6. e3 {[%emt 0:00:05]} h6 {[%emt 0:01:20]} 7. Bh4 {[%emt 0:00:06]} O-O {[%emt 1:30:55]} 8. Bd3 {[%emt 0:00:14]} c6 {[%emt 0:00:14]} 9. Bg3 {[%emt 0:00:17]} c5 {[%emt 0:05:25]} 10. dxc5 {[%emt 0:04:10]} Bxc5 {[%emt 0:00:11]} 11. Nge2 {[%emt 1:30:49]} Nc6 {[%emt 0:02:03]} 12. O-O {[%emt 0:00:31]} Bg4 {[%emt 1:25:24]} 13. h3 {[%emt 0:07:27]} Bh5 {[%emt 1:15:09]} 14. Qb3 {[%emt 0:04:27]} d4 {[%emt 1:06:03]} 15. exd4 {[%emt 0:03:04]} Nxd4 {[%emt 0:01:32]} 16. Qxb7 {[%emt 0:13:18]} (16. Nxd4 $5 Qxd4 $11) 16... Nf3+ {[%emt 0:02:15]} 17. gxf3 {[%emt 0:00:18]} Qxd3 {[%emt 0:00:10]} 18. Kg2 {[%emt 0:02:09]} Qf5 {[%emt 0:08:11]} 19. Rad1 {[%emt 0:05:12]} Rad8 {[%emt 0:08:22]} 20. Ng1 {[%emt 0:11:40]} Bb6 {[%emt 0:07:19]} 21. Qa6 {[%emt 0:16:05]} Bg6 {[%emt 0:06:48]} 22. Qa4 {[%emt 0:05:52]} Nh5 {[%emt 0:21:02]} 23. Bh2 {[%emt 0:26:11]} (23. Rxd8 $11 {keeps the balance.} Rxd8 24. Rd1 Rxd1 25. Qxd1) 23... Kh7 {[%emt 0:01:46]} 24. Nge2 {[%emt 0:02:58]} Qg5+ {[%emt 0:05:23]} 25. Qg4 {[%emt 0:01:43]} Qc5 {[%emt 0:01:24]} 26. b4 {[%emt 0:05:25]} Qe7 {[%emt 0:09:32]} 27. Rfe1 $2 {[%emt 0:12:01][%mdl 8192]} (27. Nf4 $15) 27... f5 $19 {[%emt 0:01:27]} 28. Qc4 {[%emt 0:01:12] [#]} Rc8 $1 {[%emt 0:07:07]} 29. Qb5 {[%emt 0:02:49]} Qg5+ {[%emt 0:00:34]} 30. Bg3 {[%emt 0:01:53] [#]} Nxg3 $1 {[%emt 0:03:31]} (30... Bxf2 31. h4 $14) 31. fxg3 {[%emt 0:00:22]} Qe3 {[%emt 0:00:23]} 32. Rf1 {[%emt 0:02:54]} Rxc3 {[%emt 0:00:13]} 33. Nxc3 {[%emt 0:00:03]} Qxc3 {[%emt 0:00:07]} 34. Rfe1 {[%emt 0:00:54]} f4 {[%emt 0:03:54]} 35. g4 {[%emt 0:01:06]} (35. Qe5 {was forced.} Qc2+ (35... Qxb4 $2 36. Rd7 $19) 36. Qe2) 35... Qf6 {[%emt 0:01:30]} 36. Qf1 {[%emt 0:01:31]} Be3 {[%emt 0:01:02]} 37. Rd7 {[%emt 0:00:28]} (37. Kh2 $142) 37... Rc8 {[%emt 0:00:39]} 38. Kh1 {[%emt 0:00:36]} (38. Re2 $19) 38... Qh4 {[%emt 0:01:46]} 39. Rd6 {[%emt 0:00:29]} Rc3 {[%emt 0:00:40]} (39... Rc2 $142 40. Rdd1 Rf2 (40... Rxa2 $2 41. b5 $19) (40... Qg3 $2 41. Re2 $19) 41. Rxe3 fxe3 42. Qxf2 Qxf2 43. Rg1 Qxf3+ (43... Qxa2 $2 44. g5 $19) (43... e2 44. h4 Qxf3+ 45. Kh2 Be4 46. g5 e1=Q 47. g6+ Kh8 48. Rxe1 Qg2#) 44. Kh2 Qf4+ (44... e2 45. Rg3 Qf4 46. Kg2 Be4+ 47. Rf3 Qxf3+ 48. Kh2 Qg2#) 45. Rg3 e2 (45... Qxb4 46. h4 e2 47. Rg1 e1=Q 48. Rxe1 Qxe1 49. Kg2 Be4+ 50. Kh3 Qh1+ 51. Kg3 Qf3+ 52. Kh2 Qg2#) (45... Qf2+ 46. Rg2 Be4 47. Rxf2 exf2 48. Kg3 f1=Q 49. g5 Qf3+ 50. Kh4 Qf4+ 51. Kh5 Qxg5#) 46. Kg2 e1=Q (46... e1=R 47. Rf3 Re2+ 48. Kg1 Qh2+ 49. Kf1 Qg2#) 47. Rf3 Qfd2+ 48. Rf2 Qdxf2#) 40. Red1 {[%emt 0:00:29]} Bc2 {[%emt 0:00:41]} (40... Rc2 $142 41. Rxg6 Rf2 (41... Kxg6 $2 {loses.} 42. Qd3+ Kf7 43. Qd5+ Kf8 44. Qa8+ Kf7 45. Rd7+ $18) 42. Rxg7+ Kxg7 (42... Kh8 43. Rh7+ Kxh7 44. Rd7+) 43. Rd7+ Kf8 44. Rd8+ Qxd8 45. Qa1 Kg8 (45... Rxf3 46. Qh8+ Ke7 47. Qh7+ Kf6 48. Qf5+ Kg7 49. Qe5+ Qf6 50. Qc7+ Kg6 51. Qc2+ Kg5 52. Kh2 Kh4 53. Kg2 Rg3+ 54. Kf1 Qa6+ 55. b5 Qxb5+ 56. Qd3 Qxd3+ 57. Ke1 Rg1#) 46. Qb1 Qf6 (46... Rxf3 $2 47. Qg6+ Kf8 48. Qxh6+ Kf7 49. Qh7+ Ke6 50. Qe4+ Kf6 51. Qxf3 $19) 47. Qd1 Rd2 (47... Rxa2 $2 48. Qd5+ Qf7 49. Qd8+ Kg7 50. Qd1 $19) (47... Kh8 $2 48. g5 $19) 48. Qc1 Rh2+ (48... Rxa2 49. Qc8+ Kg7 50. Qd7+ Qf7 51. Qxf7+ Kxf7 52. b5 Kg6 53. h4 Rf2 54. Kg1 Rxf3+ 55. Kg2 Rg3+ 56. Kh2 Rxg4 57. h5+ Kxh5 58. Kh1 f3 59. Kh2 Bf2 60. Kh3 Rh4#) 49. Kxh2 Bxc1 50. Kg2 Qb2+ 51. Kh1 Qf2 (51... Qxa2 52. h4 Be3 53. b5 Qf2 54. h5 Qg1#) 52. b5 Be3 53. a4 Qg1#) 41. R1d5 {[%emt 0:05:43]} Ba4 {[%emt 0:11:22]} 42. Rh5 {[%emt 0:07:47]} Qg3 {[%emt 0:02:58]} 43. g5 {[%emt 0:01:06]} Rc1 {[%emt 0:05:20]} (43... Be8 $142 44. a4 Rc1 (44... Bxh5 45. Qb1+ g6 46. Rd7+ Kh8 47. Rd8+ Kg7 48. Rd7+ Kf8 49. Rd8+ Ke7 50. Qe4+ Kxd8 51. Qd5+ Kc8 52. Qe6+ Kb8 53. Qd6+ Rc7 54. Qd8+ Kb7 55. Qd5+ Kc8 56. Qg8+ Kd7 57. Qd5+ Ke8 58. Qe6+ Kd8 59. Qd6+ Kc8 60. Qe6+ Kb8 61. Qe8+ Kb7 62. Qb5+ Bb6 63. Qd5+ Rc6 64. Qd7+ Bc7 65. Qd5 Qxh3+ 66. Kg1 Bb6+ 67. Qc5 Rxc5 68. bxc5 Bxc5#) (44... Bg6 $2 45. b5 $19) 45. Qxc1 Bxc1 46. g6+ Bxg6 47. Re5 Qxf3+ 48. Kg1 Qg3+ (48... Qxh3 49. Rde6 f3 50. Rxg6 Kxg6 51. Re6+ Qxe6 52. Kf2 Qe2+ 53. Kg3 Qg2+ 54. Kh4 Bg5#) (48... Be3+ {leads to mate.} 49. Rxe3 Qxe3+ 50. Kg2 f3+ 51. Kg3 f2+ 52. Kg2 Be4+ 53. Kh2 Qf4#) 49. Kh1 f3 (49... Qxh3+ 50. Kg1 f3 51. Rxg6 Kxg6 52. Re6+ Qxe6 53. Kf2 Qe2+ 54. Kg3 Qg2+ 55. Kh4 Bg5#) 50. Rxg6 Qxg6 (50... Qxe5 51. h4 Kxg6 52. a5 Qe1+ 53. Kh2 Bf4+ 54. Kh3 Qg3#) 51. Re2 fxe2 52. b5 e1=Q+ 53. Kh2 Qgg3#) 44. g6+ $19 {[%emt 0:00:44]} Qxg6 $1 {[%emt 0:12:57]} 45. Qxc1 {[%emt 0:17:44]} Qxd6 {[%emt 0:04:07]} 46. Qb1+ {[%emt 0:05:49]} g6 {[%emt 0:00:50]} 47. Ra5 {[%emt 0:01:53]} Bc6 {[%emt 0:00:41]} 48. Qf1 {[%emt 0:00:10]} Qxb4 {[%emt 0:00:43]} 49. Re5 {[%emt 0:00:52]} Qd6 {[%emt 0:00:25]} 50. Ra5 {[%emt 0:00:20]} Qd2 {[%emt 0:01:46]} 51. Re5 {[%emt 0:02:30]} Bxf3+ {[%emt 0:07:31]} 0-1

[Event "2nd Bundesliga Nord 2024-25"]
[Site "Germany"]
[Date "2024.11.30"]
[Round "2.5"]
[White "Van Delft, Merijn"]
[Black "Schaefer, Markus"]
[Result "1/2-1/2"]
[Annotator "TA"]
[ECO "C01"]
[WhiteElo "2359"]
[BlackElo "2344"]
[PlyCount "95"]
[EventDate "2024.11.29"]
[EventType "team-tourn"]
[EventCountry "GER"]
[SourceTitle "playchess.com"]
[Source "ChessBase"]
[SourceQuality "1"]
[TimeControl "40/5400+30:1800+30"]

{[%evp 13,95,19,22,20,25,21,21,19,18,19,18,18,41,23,41,43,47,31,29,29,26,18,27,24,22,19,37,27,40,25,21,27,27,26,29,27,48,31,28,28,54,35,39,25,37,29,22,19,29,29,48,53,40,38,57,66,50,35,56,0,69,64,83,1,0,6,14,15,15,8,8,8,8,8,8,8,8,8,8,8,8,8,22,15]} 1. e4 {[%emt 0:00:05]} e6 {[%emt 0:00:06]} 2. d4 {[%emt 0:00:14]} d5 {[%emt 0:00:03]} 3. exd5 {[%emt 0:00:08]} exd5 {[%emt 0:00:12]} 4. Nf3 {[%emt 0:00:14]} Nf6 {[%emt 0:00:36]} 5. Bd3 {[%emt 0:00:52]} Be7 {[%emt 0:00:32]} 6. h3 {[%emt 0:00:42]} O-O {[%emt 0:00:19]} 7. O-O {[%emt 0:00:31]} c5 {[%emt 0:38:48]} 8. dxc5 {[%emt 0:01:29]} Bxc5 {[%emt 0:00:04]} 9. Nc3 {[%emt 0:00:34]} Be6 {[%emt 0:04:40]} 10. Bg5 {[%emt 0:20:55]} Nbd7 {[%emt 0:00:28]} 11. Qd2 {[%emt 0:07:16]} a6 {[%emt 0:10:31]} 12. Rfe1 {[%emt 0:12:39]} Qc7 {[%emt 0:01:53]} 13. Bf4 {[%emt 0:03:25]} Bd6 {[%emt 0:02:17]} 14. Bxd6 {[%emt 0:01:37]} Qxd6 {[%emt 0:00:04]} 15. Nd4 {[%emt 0:00:33]} Nc5 {[%emt 0:03:23]} 16. a3 {[%emt 0:04:54]} Rfe8 {[%emt 0:04:37]} 17. Re3 {[%emt 0:04:35]} Bd7 {[%emt 0:01:37]} 18. Rae1 {[%emt 0:02:33]} Rxe3 {[%emt 0:00:37]} 19. Rxe3 {[%emt 0:00:49]} Re8 {[%emt 0:00:44]} 20. Rxe8+ {[%emt 0:00:54]} Nxe8 {[%emt 0:02:16]} 21. b4 {[%emt 0:10:14]} Nxd3 {[%emt 0:01:04]} 22. Qxd3 {[%emt 0:00:57]} Nf6 {[%emt 0:00:48]} 23. Nce2 {[%emt 0:05:36]} g6 {[%emt 0:06:16]} 24. Qe3 {[%emt 0:01:32]} Kg7 {[%emt 0:09:52]} 25. g4 {[%emt 0:03:08]} h6 {[%emt 0:02:07]} 26. Kg2 {[%emt 0:03:11]} b6 {[%emt 0:02:12]} 27. f3 {[%emt 0:03:11]} a5 {[%emt 0:00:56]} 28. Qc3 {[%emt 0:02:30]} axb4 {[%emt 0:01:08]} 29. axb4 {[%emt 0:00:14]} Kh7 {[%emt 0:00:57]} 30. Qd2 {[%emt 0:00:53]} Kg7 {[%emt 0:01:50]} 31. c3 {[%emt 0:02:02]} Bc8 {[%emt 0:01:48]} 32. Qe3 {[%emt 0:00:51]} Bd7 {[%emt 0:00:32]} 33. Nf4 {[%emt 0:01:53]} Qc7 {[%emt 0:01:18]} 34. h4 {[%emt 0:01:19]} Qd6 {[%emt 0:00:37]} 35. Nfe2 {[%emt 0:01:35] Excellent horsemanship.} Ng8 {[%emt 0:00:25]} 36. Nf4 {[%emt 0:01:08]} Nf6 {[%emt 0:00:52]} 37. Nd3 {[%emt 0:01:14] White is more active.} Bc8 {[%emt 0:00:27]} 38. Qe5 {[%emt 0:01:13]} (38. b5 $16) 38... Qxe5 $11 {[%emt 0:00:50]} 39. Nxe5 {[%emt 0:00:07][%mdl 4096] Endgame KBN-KNN} h5 {[%emt 0:00:31]} 40. g5 {[%emt 0:01:01]} Ne8 {[%emt 0:00:10]} 41. c4 {[%emt 0:11:09]} f6 $1 {[%emt 0:15:16]} 42. gxf6+ {[%emt 0:00:19]} Kxf6 {[%emt 0:00:08]} 43. f4 {[%emt 0:00:39]} Nc7 {[%emt 0:00:44]} 44. c5 {[%emt 0:01:53]} bxc5 {[%emt 0:00:26]} 45. bxc5 {[%emt 0:00:12]} Bf5 {[%emt 0:00:51]} 46. Kf3 {[%emt 0:04:26]} Be4+ {[%emt 0:00:50]} 47. Ke3 {[%emt 0:02:26]} Ke7 {[%emt 0:03:46]} 48. Nec6+ {[%emt 0:02:21]} 1/2-1/2

[Event "2nd Bundesliga Nord 2024-25"]
[Site "Germany"]
[Date "2024.11.30"]
[Round "2.6"]
[White "Zolfagharian, Kevin"]
[Black "Garner, Isaac"]
[Result "1-0"]
[Annotator "TA"]
[ECO "A04"]
[WhiteElo "2215"]
[BlackElo "2331"]
[PlyCount "29"]
[EventDate "2024.11.29"]
[EventType "team-tourn"]
[EventCountry "GER"]
[SourceTitle "playchess.com"]
[Source "ChessBase"]
[SourceQuality "1"]
[TimeControl "40/5400+30:1800+30"]

{[%evp 9,29,-15,-21,-50,-79,-45,-26,-36,-18,-27,-22,-43,0,0,0,0,41,46,37,43,434,412]} 1. Nf3 {[%emt 0:01:11]} Nf6 {[%emt 0:01:39]} 2. g3 {[%emt 0:02:08]} c5 {[%emt 0:03:18]} 3. Bg2 {[%emt 0:00:30]} Nc6 {[%emt 0:00:05]} 4. d4 {[%emt 0:04:19]} cxd4 {[%emt 0:00:10]} 5. Nxd4 {[%emt 0:00:02]} e5 {[%emt 0:02:10]} 6. Nb5 {[%emt 0:07:56]} (6. Nxc6 {simplifies} dxc6 7. Qxd8+ Kxd8 8. Nd2) 6... d5 {[%emt 0:13:48]} 7. Bxd5 {[%emt 0:10:42]} Qa5+ {[%emt 0:09:24]} (7... Qb6 {looks sharper.} 8. Bc4 Bc5 9. Nd6+ Bxd6 10. Qxd6 Bh3) 8. N5c3 $1 {[%emt 0:31:40]} Bh3 {[%emt 0:03:07]} 9. Bxc6+ $1 {[%emt 0:03:40]} bxc6 {[%emt 0:00:06]} 10. Qd3 {[%emt 0:00:49]} Bc5 {[%emt 0:09:29] Threatens to win with ...Rd8.} 11. Nd2 {[%emt 0:03:29]} Rd8 {[%emt 0:22:39]} 12. Qf3 {[%emt 0:01:10]} Qa6 {[%emt 0:03:15]} 13. Nde4 {[%emt 0:01:47]} Nxe4 $1 {[%emt 0:04:18]} 14. Nxe4 {[%emt 0:02:20]} Be6 $2 {[%emt 0:01:49][%mdl 8192]} 15. Nxc5 {[%emt 0:26:17]} 1-0

[Event "2nd Bundesliga Nord 2024-25"]
[Site "Germany"]
[Date "2024.11.30"]
[Round "2.7"]
[White "Bracker, Frank"]
[Black "Berg, Michael"]
[Result "1/2-1/2"]
[Annotator "ChessBase"]
[ECO "E04"]
[WhiteElo "2297"]
[BlackElo "2252"]
[PlyCount "77"]
[EventDate "2024.11.29"]
[EventType "team-tourn"]
[EventCountry "GER"]
[SourceTitle "playchess.com"]
[Source "ChessBase"]
[SourceQuality "1"]
[TimeControl "40/5400+30:1800+30"]

1. Nf3 {[%emt 0:00:04]} d5 {[%emt 0:01:03]} 2. g3 {[%emt 0:00:28]} Nf6 {[%emt 0:00:40]} 3. Bg2 {[%emt 0:00:16]} c5 {[%emt 0:02:07]} 4. O-O {[%emt 0:00:46]} Nc6 {[%emt 0:03:54]} 5. d4 {[%emt 0:00:42]} e6 {[%emt 0:03:58]} 6. c4 {[%emt 0:00:24]} dxc4 {[%emt 0:02:36]} 7. Qa4 {[%emt 0:01:49]} Bd7 {[%emt 0:06:48]} 8. Qxc4 {[%emt 0:00:35]} b5 {[%emt 0:04:17]} 9. Qd3 {[%emt 0:02:00]} Rc8 {[%emt 0:03:45]} 10. dxc5 {[%emt 0:07:06]} Bxc5 {[%emt 0:05:24]} 11. Nc3 {[%emt 0:07:53]} a6 {[%emt 0:10:25]} 12. Bg5 {[%emt 0:02:58]} Nb4 {[%emt 0:10:39]} 13. Qd2 {[%emt 0:07:15]} Bc6 {[%emt 0:03:31]} 14. Qxd8+ {[%emt 0:03:54]} Rxd8 {[%emt 0:01:15]} 15. Rac1 {[%emt 0:03:04]} Be7 {[%emt 0:04:18]} 16. a3 {[%emt 0:03:37]} Nbd5 {[%emt 0:13:19]} 17. Ne5 {[%emt 0:05:09]} Ba8 {[%emt 0:00:32]} 18. Nxd5 {[%emt 0:01:34]} Nxd5 {[%emt 0:01:45]} 19. Bxe7 {[%emt 0:00:53]} Kxe7 {[%emt 0:02:08]} 20. Nc6+ {[%emt 0:14:53]} Bxc6 {[%emt 0:00:16]} 21. Rxc6 {[%emt 0:00:06]} Rd6 {[%emt 0:03:05]} 22. Rfc1 {[%emt 0:09:16]} Rhd8 {[%emt 0:01:00]} 23. e3 {[%emt 0:11:16]} Nb6 {[%emt 0:01:05]} 24. b3 {[%emt 0:02:48]} Rxc6 {[%emt 0:04:47]} 25. Rxc6 {[%emt 0:00:13]} Rd6 {[%emt 0:00:04]} 26. Rc7+ {[%emt 0:04:12]} Rd7 {[%emt 0:00:15]} 27. Rc3 {[%emt 0:03:43]} Rd1+ {[%emt 0:04:50]} 28. Bf1 {[%emt 0:00:06]} Kd6 {[%emt 0:00:50]} 29. Kg2 {[%emt 0:04:13]} h6 {[%emt 0:01:08]} 30. Be2 {[%emt 0:00:55]} Nd5 {[%emt 0:01:00]} 31. Rc8 {[%emt 0:00:52]} Rd2 {[%emt 0:01:02]} 32. Kf1 {[%emt 0:01:53]} Ra2 {[%emt 0:00:34]} 33. Ra8 {[%emt 0:01:04]} Nc7 {[%emt 0:02:53]} 34. Rd8+ {[%emt 0:00:14]} Ke7 {[%emt 0:00:17]} 35. Rc8 {[%emt 0:00:08]} Kd7 {[%emt 0:00:28]} 36. Rf8 {[%emt 0:00:08]} Ke7 {[%emt 0:00:21]} 37. Rc8 {[%emt 0:00:06]} Kd7 {[%emt 0:01:32]} 38. Rf8 {[%emt 0:00:20]} Ke7 {[%emt 0:00:14]} 39. Rc8 {[%emt 0:03:07]} 1/2-1/2